[Event "66th HUN-ch Women 2018"]
[Site "Budapest"]
[Date "2018.12.04"]
[Round "2"]
[White "Terbe, Julianna"]
[Black "Egyed, Judit"]
[Result "1-0"]
[ECO "A43"]
[WhiteElo "2272"]
[BlackElo "2045"]
[Annotator "ChessBase"]
[PlyCount "75"]
[EventDate "2018.12.03"]
[EventType "tourn"]
[EventCountry "HUN"]
[SourceTitle "playchess.com"]
[Source "ChessBase"]
[SourceQuality "1"]
[TimeControl "40/5400+30:1800+30"]

1. d4 {[%emt 0:00:04]} c5 {[%emt 0:00:09]} 2. d5 {[%emt 0:00:38]} g6 {[%emt 0:00:05]} 3. e4 {[%emt 0:00:15]} Bg7 {[%emt 0:00:18]} 4. c4 {[%emt 0:00:37]} d6 {[%emt 0:00:06]} 5. Nf3 {[%emt 0:00:13]} e6 {[%emt 0:00:19]} 6. Be2 {[%emt 0:00:53]} Ne7 {[%emt 0:00:11]} 7. O-O {[%emt 0:01:23]} O-O {[%emt 0:00:15]} 8. Nc3 {[%emt 0:00:19]} h6 {[%emt 0:00:14]} 9. h3 {[%emt 0:03:17]} exd5 {[%emt 0:00:10]} 10. cxd5 {[%emt 0:00:52]} f5 {[%emt 0:06:30]} 11. Nd2 {[%emt 0:20:47]} f4 {[%emt 0:12:26]} 12. Nc4 {[%emt 0:04:28]} a6 {[%emt 0:04:47]} 13. a4 {[%emt 0:00:15]} Rf6 {[%emt 0:18:21]} 14. a5 {[%emt 0:04:11]} Nd7 {[%emt 0:01:13]} 15. Na4 {[%emt 0:03:15]} Qf8 {[%emt 0:08:12]} 16. Bd2 {[%emt 0:07:52]} Ne5 {[%emt 0:10:49]} 17. Nxe5 {[%emt 0:01:56]} dxe5 {[%emt 0:00:06]} 18. Bc3 {[%emt 0:00:31]} Rd6 {[%emt 0:09:12]} 19. Nxc5 {[%emt 0:02:16]} Qf6 {[%emt 0:00:44]} 20. Nd3 {[%emt 0:03:49]} Qg5 {[%emt 0:00:33]} 21. Bg4 {[%emt 0:03:44]} h5 {[%emt 0:16:20]} 22. Bxc8 {[%emt 0:00:19]} Rxc8 {[%emt 0:00:19]} 23. Ne1 {[%emt 0:00:54]} Qh6 {[%emt 0:03:25]} 24. h4 {[%emt 0:07:38]} g5 {[%emt 0:03:49]} 25. hxg5 {[%emt 0:00:04]} Qxg5 {[%emt 0:00:07]} 26. Qf3 {[%emt 0:00:18]} Ng6 {[%emt 0:00:41]} 27. Qh3 {[%emt 0:00:30]} Qg4 {[%emt 0:01:26]} 28. f3 {[%emt 0:01:04]} Qxh3 {[%emt 0:00:05]} 29. gxh3 {[%emt 0:00:04]} Nh4 {[%emt 0:01:18]} 30. Ng2 {[%emt 0:06:52]} Rg6 {[%emt 0:00:38]} 31. Rf2 {[%emt 0:00:05]} Rg3 {[%emt 0:00:25]} 32. Raf1 {[%emt 0:00:58]} Bf8 {[%emt 0:01:19]} 33. Kh2 {[%emt 0:00:34]} Ng6 {[%emt 0:01:08]} 34. Re2 {[%emt 0:01:25]} Rxc3 {[%emt 0:00:42]} 35. bxc3 {[%emt 0:00:07]} Nh8 {[%emt 0:00:30]} 36. Nh4 {[%emt 0:00:48]} Kf7 {[%emt 0:00:31]} 37. Rb2 {[%emt 0:00:37]} Kf6 {[%emt 0:00:28]} 38. Rb6+ {[%emt 0:00:30]} 1-0

[Event "66th HUN-ch Women 2018"]
[Site "Budapest"]
[Date "2018.12.04"]
[Round "2"]
[White "Terbe, Zsuzsanna"]
[Black "Varga, Klara"]
[Result "1/2-1/2"]
[ECO "A07"]
[WhiteElo "2180"]
[BlackElo "2242"]
[Annotator "ChessBase"]
[PlyCount "61"]
[EventDate "2018.12.03"]
[EventType "tourn"]
[EventCountry "HUN"]
[SourceTitle "playchess.com"]
[Source "ChessBase"]
[SourceQuality "1"]
[TimeControl "40/5400+30:1800+30"]

1. Nf3 {[%emt 0:00:04]} d5 {[%emt 0:03:30]} 2. g3 {[%emt 0:00:11]} Nf6 {[%emt 0:00:12]} 3. Bg2 {[%emt 0:00:06]} c6 {[%emt 0:00:17]} 4. O-O {[%emt 0:00:08]} Bg4 {[%emt 0:00:04]} 5. h3 {[%emt 0:00:05]} Bxf3 {[%emt 0:00:18]} 6. Bxf3 {[%emt 0:00:07]} Nbd7 {[%emt 0:00:16]} 7. d3 {[%emt 0:00:54]} e5 {[%emt 0:00:37]} 8. e4 {[%emt 0:00:12]} dxe4 {[%emt 0:01:27]} 9. dxe4 {[%emt 0:00:06]} Bc5 {[%emt 0:00:20]} 10. Nd2 {[%emt 0:06:27]} O-O {[%emt 0:02:57]} 11. c3 {[%emt 0:01:38]} a5 {[%emt 0:00:13]} 12. a4 {[%emt 0:00:22]} Qe7 {[%emt 0:04:43]} 13. Qe2 {[%emt 0:12:21]} Rfd8 {[%emt 0:02:20]} 14. Nc4 {[%emt 0:05:00]} Qe6 {[%emt 0:03:02]} 15. Kg2 {[%emt 0:05:37]} Nb6 {[%emt 0:01:42]} 16. Nxb6 {[%emt 0:05:06]} Bxb6 {[%emt 0:02:35]} 17. Bg5 {[%emt 0:01:05]} Rd6 {[%emt 0:00:47]} 18. Rfd1 {[%emt 0:05:34]} Rad8 {[%emt 0:12:14]} 19. Rxd6 {[%emt 0:04:28]} Rxd6 {[%emt 0:00:48]} 20. Bxf6 {[%emt 0:02:35]} Qxf6 {[%emt 0:00:06]} 21. Rd1 {[%emt 0:00:07]} Qd8 {[%emt 0:00:48]} 22. Rxd6 {[%emt 0:00:50]} Qxd6 {[%emt 0:00:02]} 23. Qd1 {[%emt 0:00:09]} Qc5 {[%emt 0:00:09]} 24. Qd2 {[%emt 0:00:37]} g6 {[%emt 0:01:18]} 25. Bd1 {[%emt 0:05:57]} Qc4 {[%emt 0:01:31]} 26. Bc2 {[%emt 0:00:13]} Kg7 {[%emt 0:00:33]} 27. b3 {[%emt 0:01:18]} Qe6 {[%emt 0:01:12]} 28. Qd3 {[%emt 0:01:55]} Bc5 {[%emt 0:01:29]} 29. Bd1 {[%emt 0:01:38]} h5 {[%emt 0:02:02]} 30. h4 {[%emt 0:00:16]} Qf6 {[%emt 0:01:17]} 31. Bf3 {[%emt 0:02:38]} 1/2-1/2

[Event "66th HUN-ch Women 2018"]
[Site "Budapest"]
[Date "2018.12.04"]
[Round "2"]
[White "Erdos, Boglarka"]
[Black "Havanecz, Bianka"]
[Result "0-1"]
[ECO "A06"]
[WhiteElo "2137"]
[BlackElo "2247"]
[Annotator "NA"]
[PlyCount "184"]
[EventDate "2018.12.03"]
[EventType "tourn"]
[EventCountry "HUN"]
[SourceTitle "playchess.com"]
[Source "ChessBase"]
[SourceQuality "1"]
[TimeControl "40/5400+30:1800+30"]

{[%evp 9,179,10,32767,33,25,22,32767,68,62,41,40,37,109,32767,97,41,43,32767,32767,41,54,14,9,17,44,38,50,35,32767,32767,32767,32767,32767,32767,158,51,55,41,46,56,32767,32767,32767,32767,32767,32767,-98,-144,32767,32767,-454,-464,-475,-450,-503,-481,-422,-401,-367,-386,-275,-374,-373,-425,-433,-525,32767,32767,-208,-205,32767,-170,-180,-194,-210,-187,-199,-199,-149,-178,-185,-211,-202,-240,-254,32767,32767,32767,-310,-264,32767,32767,-301,32767,32767,-327,-379,-370,-313,-234,-324,-282,-213,-317,-311,-246,-464,-338,-627,-407,-695,-764,-12836,-4133,-1116,-4141,-4145,-4145,-12841,-4149,-158,-5647,-12843,-6578,-4871,-4320,-4169,-4141,-11877,-29963,-12846,-29962,32767,-29972,-29979,-29982,-29983,-12850,-29984,-29986,-328,-29978,-29979,-29979,-29980,-29976,-27982,-29981,-29982,32767,32767,32767,32767,32767,-29985,-29988,-4141,32767,32767,32767,32767,32767,32767,32767,32767,32767,32767,-29993,-4145,-29994,32767,-29995]} 1. Nf3 {[%emt 0:00:03]} d5 {[%emt 0:00:06]} 2. g3 {[%emt 0:00:14]} Nf6 {[%emt 0:00:24]} 3. Bg2 {[%emt 0:00:07]} Bf5 {[%emt 0:00:14]} 4. c4 {[%emt 0:01:05]} c6 {[%emt 0:00:13]} 5. O-O {[%emt 0:02:52]} h6 {[%emt 0:00:23]} 6. d3 {[%emt 0:01:03]} e6 {[%emt 0:00:22]} 7. cxd5 {[%emt 0:07:38]} cxd5 {[%emt 0:00:23]} 8. Qb3 {[%emt 0:01:35] LiveBook: 19 Games A11: English Opening: 1...c6} Qc8 {[%emt 0:01:45]} (8... Qb6 9. Qxb6 axb6 10. Nd4 Bh7 11. Nb5 Kd7 12. N1c3 Nc6 13. e4 dxe4 14. dxe4 Bc5 15. a3 Ke7 {1-0 (74) Petrosian,T (2636)-Grigoryan,A (2608) Martuni 2011}) 9. Bf4 {[%emt 0:20:15]} Nc6 {[%emt 0:00:09]} 10. Rc1 {[%emt 0:02:50]} Qd7 {[%emt 0:03:45]} ({Black should play} 10... Be7 $14) 11. Nc3 {[%emt 0:01:10]} Be7 {[%emt 0:06:30]} 12. Nb5 $146 {[%emt 0:09:59]} ({Better is} 12. Ne5 $16 Nxe5 13. Bxe5) ({Predecessor:} 12. e4 Bh7 13. exd5 exd5 14. Ne5 Nxe5 15. Bxe5 {1-0 (37) Unzicker,F (2283)-Burschowsky,M (2169) Austria 2003}) 12... O-O {[%emt 0:00:22]} 13. Ne5 {[%emt 0:07:41]} Nxe5 {[%emt 0:00:10]} 14. Bxe5 {[%emt 0:06:38]} Ng4 {[%emt 0:03:31]} 15. Rc7 {[%emt 0:08:39]} Qd8 {[%emt 0:00:23]} 16. Bf4 {[%emt 0:00:56]} g5 {[%emt 0:01:16]} 17. Rxe7 $1 {[%emt 0:06:20]} Qxe7 {[%emt 0:01:23]} 18. Bd6 {[%emt 0:00:11]} Qf6 {[%emt 0:01:07]} 19. Bxf8 {[%emt 0:00:09]} Kxf8 {[%emt 0:04:29]} 20. h3 {[%emt 0:01:51]} Ne5 {[%emt 0:00:26]} 21. Rc1 {[%emt 0:02:26]} Nc6 {[%emt 0:05:51] [#]} 22. e4 {[%emt 0:06:57]} ({White should try} 22. Nd6 $1 $16 Qe7 23. Qc3 (23. Qxb7 Qxb7 24. Nxb7 Nd4 $14)) 22... dxe4 {[%emt 0:00:59]} 23. dxe4 {[%emt 0:00:02]} Bg6 {[%emt 0:00:13]} 24. Nd6 {[%emt 0:05:04] Discovered Attack (Double check)} Rd8 {[%emt 0:03:13]} 25. Nc4 {[%emt 0:02:10]} Nd4 {[%emt 0:06:07]} 26. Qe3 {[%emt 0:00:40]} e5 {[%emt 0:00:28]} 27. Nd2 {[%emt 0:04:12]} Qa6 {[%emt 0:03:50]} 28. Rc7 {[%emt 0:00:27]} Ne6 {[%emt 0:03:38]} 29. Rc4 {[%emt 0:00:40] [#]} Rxd2 $1 {[%emt 0:01:18]} 30. Rc8+ {[%emt 0:00:22]} Rd8 {[%emt 0:00:04]} 31. Rxd8+ {[%emt 0:00:19]} Nxd8 {[%emt 0:00:01]} 32. Qc5+ {[%emt 0:00:19]} Kg7 {[%emt 0:01:55]} 33. Qxe5+ {[%emt 0:00:14]} Qf6 {[%emt 0:00:36]} 34. Qc7 {[%emt 0:00:53]} Qb6 {[%emt 0:01:20]} 35. Qe5+ {[%emt 0:00:40]} Kh7 {[%emt 0:00:07]} 36. h4 {[%emt 0:00:31]} Nc6 {[%emt 0:01:20]} 37. Qd5 {[%emt 0:00:37]} Qd4 {[%emt 0:04:38]} 38. hxg5 {[%emt 0:00:27]} Qxd5 {[%emt 0:04:54]} 39. exd5 {[%emt 0:00:04]} Nd8 {[%emt 0:00:03]} 40. gxh6 {[%emt 0:00:00]} Kxh6 {[%emt 0:00:00]} 41. Kf1 {[%emt 0:05:35]} Kg5 {[%emt 0:00:26]} 42. Ke2 {[%emt 0:00:14]} Kf6 {[%emt 0:00:25]} 43. Ke3 {[%emt 0:00:20]} Ke7 {[%emt 0:00:46]} 44. Kd4 {[%emt 0:00:45]} Kd6 {[%emt 0:00:08]} 45. g4 {[%emt 0:02:23]} f5 {[%emt 0:06:45]} 46. gxf5 {[%emt 0:01:40]} Bxf5 {[%emt 0:00:05]} 47. a3 {[%emt 0:12:55]} Nf7 {[%emt 0:00:07]} 48. f4 {[%emt 0:00:12]} Nh6 {[%emt 0:00:23]} 49. b4 {[%emt 0:01:43]} Ng8 {[%emt 0:00:14]} 50. Bf3 {[%emt 0:03:29]} Bc2 {[%emt 0:01:29]} 51. Kc3 {[%emt 0:02:50]} Ba4 {[%emt 0:00:22]} 52. Kc4 {[%emt 0:01:03]} Nf6 {[%emt 0:05:26]} 53. Bg2 {[%emt 0:00:36]} b5+ {[%emt 0:04:25]} 54. Kd4 {[%emt 0:00:53]} Bb3 {[%emt 0:00:17]} 55. Bf1 {[%emt 0:00:29] [#]} a6 $1 {[%emt 0:01:00]} ({Don't do} 55... Bxd5 56. Bxb5 Be4 57. Bc4 $17) 56. Bh3 {[%emt 0:00:29]} Nxd5 {[%emt 0:02:01]} 57. Bc8 {[%emt 0:00:27]} Nxf4 {[%emt 0:00:42]} 58. Bxa6 {[%emt 0:00:47]} Ba4 {[%emt 0:00:12]} 59. Bc8 {[%emt 0:01:10]} Ne6+ {[%emt 0:02:47]} 60. Kc3 {[%emt 0:00:36]} Ke5 {[%emt 0:00:16]} 61. Bd7 {[%emt 0:01:53]} Nd4 {[%emt 0:03:46]} 62. Be8 {[%emt 0:01:11]} Ke4 {[%emt 0:00:40]} 63. Bg6+ {[%emt 0:00:45]} Ke3 {[%emt 0:00:06]} 64. Bh7 {[%emt 0:00:34]} Ne2+ {[%emt 0:00:37]} 65. Kb2 {[%emt 0:00:25]} Kd4 {[%emt 0:00:45]} 66. Bg6 {[%emt 0:00:26]} Nc3 {[%emt 0:00:42]} 67. Be8 {[%emt 0:00:38]} Nd5 {[%emt 0:00:39]} 68. Bd7 {[%emt 0:00:38]} Nb6 {[%emt 0:00:09]} 69. Be8 {[%emt 0:00:12]} Nc4+ {[%emt 0:00:17]} 70. Ka2 {[%emt 0:00:32]} Kc3 {[%emt 0:00:06]} 71. Bd7 {[%emt 0:00:32]} Bb3+ {[%emt 0:00:23]} 72. Ka1 {[%emt 0:00:40]} Nxa3 {[%emt 0:00:09]} 73. Be8 {[%emt 0:00:17]} Bc4 {[%emt 0:00:54]} 74. Bd7 {[%emt 0:00:12]} Nc2+ $2 {[%emt 0:00:20]} (74... Bd3 {mates} 75. Ka2 Nc2 76. Be8 Nxb4+ 77. Ka1 Nc2+ 78. Kb1 Nb4+ 79. Ka1 Nc2+ 80. Kb1 b4 81. Ba4 Ne3+ 82. Kc1 Bc2 83. Bxc2 Nxc2 84. Kd1 Nd4 85. Ke1 b3 86. Kf1 b2 87. Kf2 b1=Q 88. Kg3 Qg6+ 89. Kf4 Kd3 90. Ke5 Ke3 91. Kd5 Qc6+ 92. Ke5 Qe6#) 75. Kb1 {[%emt 0:00:08]} Nxb4 {[%emt 0:00:08]} 76. Bxb5 {[%emt 0:00:39]} Bxb5 {[%emt 0:00:05]} 77. Ka1 {[%emt 0:00:18]} Bc4 {[%emt 0:00:56]} 78. Kb1 {[%emt 0:00:06]} Nc2 {[%emt 0:00:04]} 79. Kc1 {[%emt 0:00:11]} Ba2 {[%emt 0:00:12]} 80. Kd1 {[%emt 0:00:04]} Nd4 {[%emt 0:01:06]} 81. Kc1 {[%emt 0:00:23]} Ne2+ {[%emt 0:00:21]} 82. Kd1 {[%emt 0:00:13]} Kd3 {[%emt 0:00:09]} 83. Ke1 {[%emt 0:00:06]} Ke3 {[%emt 0:00:21]} 84. Kf1 {[%emt 0:00:21]} Nf4 {[%emt 0:01:30]} 85. Ke1 {[%emt 0:01:19]} Bb3 {[%emt 0:00:08]} 86. Kf1 {[%emt 0:00:09]} Bc2 {[%emt 0:00:40]} 87. Kg1 {[%emt 0:00:55]} Kf3 {[%emt 0:00:12]} 88. Kf1 {[%emt 0:00:28]} Ng2 {[%emt 0:00:15]} 89. Kg1 {[%emt 0:00:04]} Kg3 {[%emt 0:00:11]} 90. Kh1 {[%emt 0:00:53]} Bd3 {[%emt 0:00:06]} 91. Kg1 {[%emt 0:00:05]} Nf4 {[%emt 0:00:12]} 92. Kh1 {[%emt 0:00:14]} Be2 {[%emt 0:00:13]} 0-1

[Event "66th HUN-ch Women 2018"]
[Site "Budapest"]
[Date "2018.12.04"]
[Round "2"]
[White "Gaal, Zsoka"]
[Black "Juhasz, Barbara"]
[Result "1/2-1/2"]
[ECO "A05"]
[WhiteElo "2020"]
[BlackElo "2176"]
[Annotator "ChessBase"]
[PlyCount "60"]
[EventDate "2018.12.03"]
[EventType "tourn"]
[EventCountry "HUN"]
[SourceTitle "playchess.com"]
[Source "ChessBase"]
[SourceQuality "1"]
[TimeControl "40/5400+30:1800+30"]

1. Nf3 {[%emt 0:00:04]} Nf6 {[%emt 0:00:08]} 2. g3 {[%emt 0:00:10]} g6 {[%emt 0:00:05]} 3. Bg2 {[%emt 0:00:08]} Bg7 {[%emt 0:00:08]} 4. O-O {[%emt 0:00:09]} d6 {[%emt 0:00:13]} 5. d4 {[%emt 0:00:13]} O-O {[%emt 0:00:08]} 6. b3 {[%emt 0:00:05]} c5 {[%emt 0:00:06]} 7. c4 {[%emt 0:00:21]} Nc6 {[%emt 0:03:24]} 8. Bb2 {[%emt 0:00:23]} Bg4 {[%emt 0:12:52]} 9. d5 {[%emt 0:04:06]} Na5 {[%emt 0:00:41]} 10. Nbd2 {[%emt 0:02:19]} e5 {[%emt 0:07:01]} 11. dxe6 {[%emt 0:07:12]} Bxe6 {[%emt 0:08:38]} 12. Rc1 {[%emt 0:09:21]} Rc8 {[%emt 0:02:47]} 13. Bxf6 {[%emt 0:15:52]} Bxf6 {[%emt 0:03:26]} 14. Ne4 {[%emt 0:01:10]} Be7 {[%emt 0:01:53]} 15. Nc3 {[%emt 0:01:48]} Nc6 {[%emt 0:00:51]} 16. Qd2 {[%emt 0:02:32]} Qd7 {[%emt 0:02:21]} 17. Rfd1 {[%emt 0:03:47]} Rfd8 {[%emt 0:00:27]} 18. Qf4 {[%emt 0:12:25]} Qe8 {[%emt 0:05:52]} 19. h4 {[%emt 0:17:18]} f6 {[%emt 0:15:44]} 20. Qe3 {[%emt 0:04:34]} Qf7 {[%emt 0:00:33]} 21. Nd5 {[%emt 0:00:46]} Bf8 {[%emt 0:14:51]} 22. Nf4 {[%emt 0:02:16]} Re8 {[%emt 0:02:06]} 23. Nxe6 {[%emt 0:01:07]} Qxe6 {[%emt 0:00:41]} 24. Qxe6+ {[%emt 0:00:55]} Rxe6 {[%emt 0:00:04]} 25. e3 {[%emt 0:00:27]} Ree8 {[%emt 0:04:00]} 26. Rd2 {[%emt 0:02:42]} a6 {[%emt 0:00:24]} 27. Ne1 {[%emt 0:01:12]} b5 {[%emt 0:00:40]} 28. Bd5+ {[%emt 0:00:17]} Kg7 {[%emt 0:00:05]} 29. Nd3 {[%emt 0:00:55]} f5 {[%emt 0:02:50]} 30. Kg2 {[%emt 0:01:52]} Kf6 {[%emt 0:02:27]} 1/2-1/2

[Event "66th HUN-ch Women 2018"]
[Site "Budapest"]
[Date "2018.12.05"]
[Round "3"]
[White "Havanecz, Bianka"]
[Black "Gaal, Zsoka"]
[Result "1-0"]
[ECO "E67"]
[WhiteElo "2247"]
[BlackElo "2020"]
[Annotator "ChessBase"]
[PlyCount "105"]
[EventDate "2018.12.03"]
[EventType "tourn"]
[EventCountry "HUN"]
[SourceTitle "playchess.com"]
[Source "ChessBase"]
[SourceQuality "1"]
[TimeControl "40/5400+30:1800+30"]

1. d4 {[%emt 0:00:03]} Nf6 {[%emt 0:00:09]} 2. Nf3 {[%emt 0:00:18]} g6 {[%emt 0:00:08]} 3. g3 {[%emt 0:00:23]} Bg7 {[%emt 0:00:08]} 4. Bg2 {[%emt 0:00:12]} O-O {[%emt 0:00:09]} 5. O-O {[%emt 0:00:10]} d6 {[%emt 0:00:07]} 6. c4 {[%emt 0:02:38]} Nbd7 {[%emt 0:00:15]} 7. Nc3 {[%emt 0:00:42]} e5 {[%emt 0:00:17]} 8. Qc2 {[%emt 0:02:30]} exd4 {[%emt 0:01:48]} 9. Nxd4 {[%emt 0:00:02]} Nb6 {[%emt 0:00:28]} 10. Rd1 {[%emt 0:06:38]} Nxc4 {[%emt 0:01:25]} 11. Ncb5 {[%emt 0:00:08]} a6 {[%emt 0:00:28]} 12. Qxc4 {[%emt 0:02:23]} axb5 {[%emt 0:00:21]} 13. Nxb5 {[%emt 0:01:44]} Ne8 {[%emt 0:00:42]} 14. a4 {[%emt 0:07:46]} c6 {[%emt 0:11:20]} 15. Nd4 {[%emt 0:01:14]} d5 {[%emt 0:01:03]} 16. Qc2 {[%emt 0:08:29]} Nd6 {[%emt 0:14:01]} 17. Bf4 {[%emt 0:02:51]} Nf5 {[%emt 0:02:42]} 18. Nb3 {[%emt 0:05:51]} Qf6 {[%emt 0:05:21]} 19. Ra2 {[%emt 0:02:22]} Be6 {[%emt 0:08:34]} 20. Nc5 {[%emt 0:03:14]} Nd4 {[%emt 0:11:58]} 21. Qd2 {[%emt 0:00:14]} Qe7 {[%emt 0:00:56]} 22. Nxe6 {[%emt 0:05:35]} Nxe6 {[%emt 0:00:51]} 23. Bh6 {[%emt 0:10:17]} Bxh6 {[%emt 0:05:35]} 24. Qxh6 {[%emt 0:00:02]} Qb4 {[%emt 0:02:29]} 25. Qh4 {[%emt 0:07:37]} Qxh4 {[%emt 0:06:03]} 26. gxh4 {[%emt 0:00:01]} Nc5 {[%emt 0:01:11]} 27. a5 {[%emt 0:02:58]} Rfe8 {[%emt 0:06:31]} 28. b4 {[%emt 0:00:42]} Ne4 {[%emt 0:01:06]} 29. Rc2 {[%emt 0:01:14]} Nd6 {[%emt 0:02:16]} 30. h5 {[%emt 0:01:01]} gxh5 {[%emt 0:02:05]} 31. Rd4 {[%emt 0:00:08]} Re5 {[%emt 0:02:48]} 32. Bf3 {[%emt 0:02:24]} Kg7 {[%emt 0:01:35]} 33. h4 {[%emt 0:04:14]} Kf6 {[%emt 0:02:02]} 34. Kf1 {[%emt 0:00:51]} Ke7 {[%emt 0:01:01]} 35. e3 {[%emt 0:04:45]} Rf5 {[%emt 0:04:04]} 36. Ke2 {[%emt 0:01:53]} Nb5 {[%emt 0:00:25]} 37. Rd1 {[%emt 0:00:12]} Kf6 {[%emt 0:02:11]} 38. Rc5 {[%emt 0:03:12]} d4 {[%emt 0:02:32]} 39. Rxf5+ {[%emt 0:00:11]} Kxf5 {[%emt 0:00:01]} 40. Rg1 {[%emt 0:00:00]} dxe3 {[%emt 0:00:00]} 41. fxe3 {[%emt 0:01:25]} h6 {[%emt 0:10:31]} 42. Bxh5 {[%emt 0:00:26]} f6 {[%emt 0:10:26]} 43. Rg7 {[%emt 0:00:34]} Nd6 {[%emt 0:02:14]} 44. Bg4+ {[%emt 0:00:45]} Ke5 {[%emt 0:00:23]} 45. Re7+ {[%emt 0:00:20]} Kd5 {[%emt 0:00:16]} 46. Be6+ {[%emt 0:00:11]} Ke5 {[%emt 0:00:37]} 47. Bb3+ {[%emt 0:05:01]} Kf5 {[%emt 0:00:31]} 48. Kf3 {[%emt 0:00:35]} Kg6 {[%emt 0:00:38]} 49. Rd7 {[%emt 0:00:17]} c5 {[%emt 0:06:54]} 50. Rxd6 {[%emt 0:00:44]} cxb4 {[%emt 0:00:16]} 51. Rd5 {[%emt 0:00:08]} h5 {[%emt 0:03:44]} 52. Bc2+ {[%emt 0:00:36]} Kh6 {[%emt 0:00:40]} 53. Rd7 {[%emt 0:00:11]} 1-0

[Event "66th HUN-ch Women 2018"]
[Site "Budapest"]
[Date "2018.12.05"]
[Round "3"]
[White "Gal, Hanna Krisztina"]
[Black "Terbe, Julianna"]
[Result "1-0"]
[ECO "C70"]
[WhiteElo "2189"]
[BlackElo "2272"]
[Annotator "ChessBase"]
[PlyCount "107"]
[EventDate "2018.12.03"]
[EventType "tourn"]
[EventCountry "HUN"]
[SourceTitle "playchess.com"]
[Source "ChessBase"]
[SourceQuality "1"]
[TimeControl "40/5400+30:1800+30"]

1. e4 {[%emt 0:00:02]} e5 {[%emt 0:00:06]} 2. Nf3 {[%emt 0:00:08]} Nc6 {[%emt 0:00:06]} 3. Bb5 {[%emt 0:00:08]} a6 {[%emt 0:00:05]} 4. Ba4 {[%emt 0:00:09]} b5 {[%emt 0:00:08]} 5. Bb3 {[%emt 0:00:06]} Na5 {[%emt 0:00:04]} 6. O-O {[%emt 0:00:47]} d6 {[%emt 0:00:14]} 7. d4 {[%emt 0:11:29]} exd4 {[%emt 0:00:12]} 8. c3 {[%emt 0:00:06]} Nxb3 {[%emt 0:04:46]} 9. axb3 {[%emt 0:00:26]} Bb7 {[%emt 0:10:02]} 10. Bg5 {[%emt 0:17:28]} f6 {[%emt 0:06:39]} 11. Bf4 {[%emt 0:05:50]} Ne7 {[%emt 0:00:52]} 12. Nxd4 {[%emt 0:02:22]} Qd7 {[%emt 0:05:34]} 13. Re1 {[%emt 0:03:00]} g5 {[%emt 0:01:49]} 14. Qh5+ {[%emt 0:05:28]} Ng6 {[%emt 0:01:03]} 15. Bg3 {[%emt 0:02:03]} O-O-O {[%emt 0:02:51]} 16. c4 {[%emt 0:18:33]} b4 {[%emt 0:01:40]} 17. Nd2 {[%emt 0:01:51]} Ne5 {[%emt 0:05:24]} 18. Qe2 {[%emt 0:01:38]} h5 {[%emt 0:01:30]} 19. h4 {[%emt 0:01:34]} Bh6 {[%emt 0:06:20]} 20. Nf1 {[%emt 0:03:09]} Rdg8 {[%emt 0:03:49]} 21. hxg5 {[%emt 0:14:06]} fxg5 {[%emt 0:01:38]} 22. Bxe5 {[%emt 0:00:52]} dxe5 {[%emt 0:00:01]} 23. Nf5 {[%emt 0:00:10]} Bf8 {[%emt 0:02:46]} 24. Qe3 {[%emt 0:03:06]} g4 {[%emt 0:04:56]} 25. Ra5 {[%emt 0:02:01]} c5 {[%emt 0:03:11]} 26. Rxc5+ {[%emt 0:01:37]} Bxc5 {[%emt 0:00:24]} 27. Qxc5+ {[%emt 0:00:01]} Kb8 {[%emt 0:00:23]} 28. Qxb4 {[%emt 0:02:41]} Rg6 {[%emt 0:05:07]} 29. N1e3 {[%emt 0:01:17]} g3 {[%emt 0:03:54]} 30. fxg3 {[%emt 0:00:30]} Qd3 {[%emt 0:02:27]} 31. Nd5 {[%emt 0:00:37]} h4 {[%emt 0:01:06]} 32. Qc3 {[%emt 0:00:28]} Qxc3 {[%emt 0:00:32]} 33. bxc3 {[%emt 0:00:01]} hxg3 {[%emt 0:00:06]} 34. Re3 {[%emt 0:00:20]} Bc8 {[%emt 0:01:13]} 35. Nde7 {[%emt 0:01:47]} Bxf5 {[%emt 0:04:35]} 36. exf5 {[%emt 0:00:31]} Rd6 {[%emt 0:04:03]} 37. Nd5 {[%emt 0:00:20]} Rdh6 {[%emt 0:01:14]} 38. Rxg3 {[%emt 0:00:09]} Rh1+ {[%emt 0:00:03]} 39. Kf2 {[%emt 0:00:06]} Rb1 {[%emt 0:00:13]} 40. f6 {[%emt 0:00:00]} Rf8 {[%emt 0:00:00]} 41. b4 {[%emt 0:02:01]} a5 {[%emt 0:07:38]} 42. bxa5 {[%emt 0:00:47]} Ra1 {[%emt 0:00:05]} 43. Re3 {[%emt 0:05:31]} Rxa5 {[%emt 0:02:27]} 44. g4 {[%emt 0:01:35]} Kc8 {[%emt 0:05:19]} 45. g5 {[%emt 0:00:24]} Kd8 {[%emt 0:00:22]} 46. Rxe5 {[%emt 0:03:41]} Rc5 {[%emt 0:00:01]} 47. Re4 {[%emt 0:00:58]} Kd7 {[%emt 0:01:17]} 48. Ke3 {[%emt 0:00:53]} Rc6 {[%emt 0:00:36]} 49. Kf4 {[%emt 0:03:34]} Re6 {[%emt 0:00:19]} 50. g6 {[%emt 0:06:11]} Rxe4+ {[%emt 0:00:11]} 51. Kxe4 {[%emt 0:00:03]} Ke6 {[%emt 0:00:10]} 52. g7 {[%emt 0:00:44]} Rc8 {[%emt 0:00:02]} 53. Ne7 {[%emt 0:00:33]} Rxc4+ {[%emt 0:00:04]} 54. Kd3 {[%emt 0:00:05] Kd5 Ke4+} 1-0